bitfinex/quotes_ETHUSD_20240822
["timestamp","ask_amount","ask_price","bid_price","bid_amount"]
[1724329855504,3.55,2644.2,2643.0,4.119]
[1724329855707,3.78234,2643.9,2643.0,4.119]
[1724329855898,3.78234,2643.9,2642.6,4.119]
[1724329856152,3.78213,2644.1,2642.7,3.0]
[1724329856312,0.55,2644.0,2643.0,4.119]
[1724329856500,4.17660939,2644.1,2643.0,4.119]
[1724329857168,0.39449939,2644.1,2643.0,4.119]
[1724329857462,0.88944994,2644.0,2643.0,4.60209]
[1724329857806,4.67159994,2644.0,2643.0,4.60209]
[1724329858001,3.78244,2643.8,2643.0,4.119]
[1724329858220,3.78234,2643.9,2643.0,4.119]
[1724329858418,7.56474,2643.9,2643.0,4.119]
[1724329858620,7.56474,2643.9,2642.8,0.7119]
[1724329858621,3.78261,2643.7,2642.7,3.0]
[1724329858919,3.78321,2643.3,2641.8,4.119]
[1724329859125,0.84541899,2643.8,2641.9,3.78514]
[1724329859126,3.78289,2643.5,2641.9,3.78514]
[1724329859341,0.84541899,2643.8,2641.8,4.119]
[1724329859342,3.55,2643.4,2641.8,4.119]
[1724329859508,0.905,2643.4,2642.0,3.78488]
[1724329859707,0.905,2643.4,2642.0,7.56978]
[1724329859903,0.905,2643.4,2642.1,3.78482]
[1724329860130,0.905,2643.4,2642.2,4.119]
[1724329860319,3.0,2643.6,2642.2,4.119]
[1724329860534,3.78259,2643.7,2642.2,4.119]
[1724329860779,3.78259,2643.7,2642.2,7.90369]
[1724329860780,3.0,2643.6,2642.2,7.90369]
[1724329862582,0.55,2643.5,2642.2,4.119]
[1724329862867,0.5405339,2643.5,2642.2,4.119]
[1724329863094,0.5405339,2643.5,2642.3,0.4119]
[1724329863431,3.78229,2643.9,2642.6,4.119]
[1724329863645,4.12164994,2644.0,2642.6,4.119]
[1724329863935,0.33944994,2644.0,2642.6,4.119]
[1724329864081,0.33944994,2644.0,2642.7,3.79032]
[1724329864288,4.12160994,2644.0,2642.7,3.79032]
[1724329864848,3.78254,2643.8,2642.7,0.79032]
[1724329865143,0.55,2643.9,2642.3,0.4119]
[1724329865144,3.78296,2643.5,2642.3,0.4119]
[1724329865361,7.56594,2643.5,2642.3,3.4119]
[1724329865603,3.78332,2643.2,2642.3,3.4119]
[1724329865765,3.78332,2643.2,2641.9,0.4819]
[1724329865766,3.7836,2643.0,2641.9,0.4819]
[1724329865962,3.7836,2643.0,2641.6,4.119]
[1724329866145,3.78391,2642.8,2641.6,4.119]
[1724329866345,3.78403,2642.7,2641.6,4.119]
[1724329866682,3.78403,2642.7,2641.2,4.119]
[1724329866683,0.55,2642.7,2641.2,4.119]
[1724329866996,0.55,2642.7,2641.5,3.78561]
[1724329867194,3.0,2643.0,2641.5,3.78561]
[1724329867343,0.55,2642.9,2641.5,7.57124]
[1724329867544,0.55,2642.9,2641.6,3.78556]
[1724329867781,0.55,2642.9,2641.3,4.576412]
[1724329867978,0.355,2642.8,2641.4,3.8695412]
[1724329868178,0.55,2642.9,2641.4,3.8695412]
[1724329868179,0.55,2642.7,2641.4,3.8695412]
[1724329868361,4.33381,2642.9,2641.4,3.8695412]
[1724329868580,3.0,2642.8,2641.4,3.8695412]
[1724329868919,3.0,2642.8,2641.6,3.78549]
[1724329869206,0.55,2642.9,2641.7,4.542538]
[1724329870692,0.55,2642.9,2641.7,0.757108]
[1724329870911,3.78402,2642.7,2641.7,0.757108]
[1724329871203,0.55,2642.6,2641.7,0.757108]
[1724329871367,0.55,2642.6,2641.4,0.8695412]
[1724329871907,3.78495,2642.1,2641.4,0.8695412]
[1724329872125,3.78495,2642.1,2640.9,0.9]
[1724329872421,3.55,2642.6,2640.9,0.9]
[1724329872422,3.78533,2641.8,2640.9,0.9]
[1724329872739,7.33419,2642.6,2640.9,0.9]
[1724329872740,3.78491,2642.1,2640.9,0.9]
[1724329873013,0.55,2642.0,2640.9,0.9]
[1724329873314,4.33509,2642.0,2640.9,0.9]
[1724329873463,3.78531,2641.8,2640.9,0.9]
[1724329873656,4.33553,2641.7,2640.9,0.9]
[1724329874216,0.55,2641.7,2640.9,0.9]
[1724329874411,3.0,2641.9,2640.9,0.9]
[1724329874909,3.78495,2642.1,2640.9,0.9]
[1724329874910,3.0,2642.0,2640.9,0.9]
[1724329875205,4.33517,2641.9,2640.9,0.9]
[1724329875409,3.0,2641.8,2640.9,0.9]
[1724329876180,0.55,2641.9,2640.9,0.9]
[1724329876494,3.78552,2641.7,2640.9,0.9]
[1724329876704,0.55,2641.6,2640.9,0.9]
[1724329876903,3.78581,2641.5,2640.9,0.9]
[1724329877078,0.433581,2641.5,2640.9,0.9]
[1724329877285,0.55,2641.4,2640.9,0.9]
[1724329877579,7.57288,2641.0,2640.9,0.9]
[1724329877968,11.12288,2641.0,2640.9,0.56930225]
[1724329878266,14.90932,2641.0,2640.9,0.56930225]
[1724329878469,17.203152,2641.0,2640.9,0.56930225]
[1724329879269,7.57432,2640.5,2640.4,0.6]
[1724329879473,15.48048,2640.5,2640.4,0.6]
[1724329879722,15.48048,2640.5,2639.9,0.6]
[1724329879723,7.57574,2640.0,2639.9,0.6]
[1724329880016,8.333314,2640.0,2639.9,0.6]
[1724329880222,11.883314,2640.0,2639.9,0.6]
[1724329880716,8.095444,2640.0,2639.9,0.6]
[1724329880867,0.55,2640.0,2639.9,0.6]
[1724329881277,3.78787,2640.0,2639.9,0.6]
[1724329881526,4.33787,2640.0,2639.9,0.6]
[1724329881910,0.55,2640.0,2639.9,0.6]
[1724329882385,4.33787,2640.0,2639.9,0.6]
[1724329882589,8.841419,2640.0,2639.9,0.6]
[1724329883471,12.629289,2640.0,2639.9,0.6]
[1724329885024,8.841419,2640.0,2639.9,0.6]
[1724329885788,9.23621079,2640.0,2639.9,0.6]
[1724329887521,13.02408079,2640.0,2639.9,0.6]
[1724329888087,20.59982079,2640.0,2639.9,0.6]
[1724329888359,7.57836,2639.1,2636.9,3.79231]
[1724329888482,3.78827,2639.8,2636.9,3.79231]
[1724329888483,3.79031,2638.4,2636.9,3.79231]
[1724329888682,4.119,2638.9,2636.9,3.79218]
[1724329888683,3.79005,2638.5,2636.9,3.79218]
[1724329888941,3.55,2638.4,2637.0,3.79218]
[1724329889231,0.55,2638.4,2637.0,3.79218]
[1724329889452,0.55,2638.4,2636.9,3.79218]
[1724329889733,3.79034,2638.3,2636.7,7.58508]
[1724329889919,0.55,2638.4,2637.0,4.119]
[1724329890100,0.55,2638.4,2637.1,3.79194]
[1724329890281,4.3402,2638.4,2636.9,3.79229]
[1724329890482,6.79034,2638.3,2636.7,3.79257]
[1724329890729,0.55,2638.2,2636.7,3.79257]
[1724329890939,3.79077,2638.0,2636.6,4.119]
[1724329891240,3.0,2637.9,2636.5,3.79284]
[1724329891527,3.0,2637.9,2636.4,3.79304]
[1724329891528,7.34092,2637.9,2636.4,3.79304]
[1724329892231,3.7913,2637.7,2636.0,3.7936]
[1724329892432,3.78093516,2637.5,2636.0,3.7936]
[1724329892902,4.33093516,2637.5,2636.0,3.7936]
[1724329893114,3.0,2637.9,2636.4,3.79295]
[1724329893418,0.55,2637.8,2636.4,3.79295]
[1724329893731,3.55,2637.9,2636.3,0.42662542]
[1724329893934,3.55,2637.9,2636.2,7.91228]
[1724329893935,3.79115,2637.8,2636.2,7.91228]
[1724329894085,3.55,2637.7,2636.2,7.91228]
[1724329894296,3.0,2637.8,2636.4,4.21955542]
[1724329894503,0.55,2637.9,2636.8,0.42662542]
[1724329894751,0.55,2637.9,2636.6,7.91164]
[1724329895059,0.55,2638.0,2636.7,3.79259]
[1724329895259,0.55,2638.0,2637.5,2.4491]
[1724329895559,3.91,2638.4,2636.8,3.79247]
[1724329895560,3.91,2638.4,2637.7,2.4491]
[1724329896101,4.30496351,2638.4,2637.7,2.4491]
[1724329896349,3.79034,2638.3,2637.7,2.4491]
[1724329896515,4.30496351,2638.4,2637.7,2.4491]
[1724329896872,8.09514351,2638.4,2637.7,2.4491]
[1724329897161,8.09514351,2638.4,2637.4,2.5205271]
[1724329897162,3.79101,2637.9,2637.4,2.5205271]
[1724329897654,3.79118,2637.7,2637.4,2.5205271]
[1724329897958,4.34132,2637.6,2637.4,2.5205271]
[1724329898195,4.34132,2637.6,2637.4,0.1266271]
[1724329898196,4.60471,2637.5,2637.4,0.1266271]
[1724329898348,0.55,2637.5,2637.4,0.1266271]
[1724329899534,0.55,2637.5,2637.4,2.4119271]
[1724329899748,3.0,2637.8,2637.4,2.4119271]
[1724329899978,0.55,2637.7,2637.4,2.4119271]
[1724329900538,0.80951435,2638.3,2637.4,2.4119271]
[1724329900965,0.39496351,2638.4,2637.4,2.4119271]
[1724329901596,0.39496351,2638.4,2637.6,2.2684]
[1724329901733,0.39496351,2638.4,2637.7,0.07581431]
[1724329902093,0.39496351,2638.4,2637.4,3.9181771]
[1724329902094,3.78925,2639.1,2637.9,2.2684]
[1724329902254,0.37892,2639.0,2638.1,2.3663]
[1724329902457,3.78945,2638.9,2638.1,2.3663]
[1724329902669,3.79044,2638.3,2638.1,2.3663]
[1724329902835,3.79044,2638.3,2637.5,2.3623]
[1724329903185,3.79041,2638.3,2637.5,2.61119271]
[1724329903402,7.5814,2638.1,2637.5,2.3623]
[1724329903682,3.0,2638.0,2637.5,2.3623]
[1724329903878,0.55,2637.9,2637.5,2.3623]
[1724329904693,3.79104,2637.8,2637.5,2.3623]
[1724329904988,0.55,2637.7,2637.5,2.3623]
[1724329905350,0.55,2637.9,2637.5,2.3623]
[1724329906474,3.0,2638.3,2637.5,2.3623]
[1724329906696,3.78999,2638.6,2637.5,2.3623]
[1724329906857,6.7898,2638.7,2637.5,2.3623]
[1724329907057,3.79019,2638.4,2637.6,0.24889271]
[1724329907277,3.0,2638.3,2637.6,0.24889271]
[1724329907489,3.0,2638.3,2637.7,2.4223]
[1724329907642,3.78947,2638.9,2637.7,2.4223]
[1724329908002,3.79012,2638.5,2637.9,2.3586]
[1724329908287,3.78983,2638.7,2637.9,2.3586]
[1724329908444,0.682983,2638.7,2637.9,2.3586]
[1724329908639,0.77355641,2639.0,2637.9,2.3586]
[1724329908839,6.82961,2638.8,2637.9,2.3586]
[1724329909058,0.77355641,2639.0,2637.9,2.3586]
[1724329909448,3.78945,2638.9,2637.9,2.3586]
[1724329909840,7.57901,2638.9,2637.9,2.3586]
[1724329910095,0.83525664,2638.9,2638.1,2.2828]
[1724329910276,3.78945,2638.9,2638.1,2.2828]
[1724329910443,3.0,2638.8,2638.1,2.2828]
[1724329910904,0.55,2638.7,2638.1,2.2828]
[1724329911215,0.55,2638.9,2638.1,2.2828]
[1724329911512,1.74020964,2638.9,2638.1,2.2828]
[1724329911803,1.74020964,2638.9,2637.4,8.0371471]
[1724329911804,3.0,2638.9,2638.2,0.0758054]
[1724329912107,3.39463641,2639.0,2637.9,3.79087]
[1724329912108,0.39463641,2639.0,2638.3,2.2688]
[1724329912275,3.78918,2639.1,2638.3,2.2688]
[1724329912476,3.78985,2638.7,2638.3,2.2688]
[1724329912666,4.168835,2638.7,2638.3,2.2688]
[1724329912864,0.378985,2638.7,2638.3,2.2688]
[1724329913312,0.39493323,2639.0,2638.3,2.2688]
[1724329913614,0.55,2638.9,2638.3,2.2688]
[1724329914310,0.59427169,2638.8,2638.3,2.2688]
[1724329915108,0.55,2638.7,2638.3,2.2688]
[1724329917394,0.59427169,2638.8,2638.3,2.2688]
[1724329917560,0.59427169,2638.8,2638.5,2.3733]
[1724329918496,0.39493323,2639.0,2638.5,2.3733]
[1724329918696,0.55,2638.9,2638.5,2.3733]
[1724329918906,0.39493323,2639.0,2638.5,2.3733]
[1724329919064,0.59423983,2639.4,2638.5,2.3733]
[1724329919438,4.38297983,2639.4,2638.5,2.3733]
[1724329919916,8.17181983,2639.4,2638.5,2.3733]
[1724329920218,4.38297983,2639.4,2638.5,2.3733]
[1724329920387,3.0,2639.3,2638.5,2.3733]
[1724329920920,0.59423983,2639.4,2638.5,2.3733]
[1724329920921,3.78944,2639.0,2638.5,2.3733]
[1724329921065,3.78988,2638.6,2638.5,2.3733]
[1724329921268,3.78977,2638.7,2637.5,2.3733]
[1724329921579,3.55,2638.6,2637.5,2.3733]
[1724329923575,7.33998,2638.6,2637.5,2.3733]
[1724329923907,7.33998,2638.6,2637.4,0.1266271]
[1724329923908,12.242935,2638.6,2637.6,2.57209271]
[1724329924117,3.79033,2638.3,2637.6,2.3221]
[1724329924411,0.55,2638.2,2637.6,2.3221]
[1724329924651,7.902935,2638.6,2637.6,2.3221]
[1724329924652,3.0,2638.3,2637.6,2.3221]
[1724329924847,1.1693215,2638.4,2637.6,2.3221]
[1724329925149,0.55,2638.3,2637.6,2.3221]
[1724329925355,3.0,2638.7,2637.6,2.3221]
[1724329925518,3.79003,2638.5,2637.6,2.3221]
[1724329925856,3.55,2638.4,2637.6,2.3221]
[1724329926513,3.79037,2638.3,2637.6,2.3221]
[1724329926854,0.55,2638.2,2637.6,2.3221]
[1724329927157,3.0,2638.4,2637.6,2.3221]
[1724329927451,0.55,2638.3,2637.6,2.3221]
[1724329927661,3.79003,2638.5,2637.6,2.3221]
[1724329927807,7.34028,2638.4,2637.6,2.3221]
[1724329928102,3.55,2638.4,2637.6,2.3221]
[1724329928309,0.55,2638.4,2637.6,2.3221]
[1724329928619,0.55,2638.5,2637.6,2.3221]
[1724329929586,8.13015,2638.5,2637.6,2.3221]
[1724329929755,3.3951836,2638.4,2637.6,2.3221]
[1724329929919,1.32352136,2638.3,2637.6,2.3221]
[1724329930469,3.79061,2638.1,2637.6,2.3221]
[1724329930666,0.55,2638.0,2637.6,2.3221]
[1724329931161,0.77352136,2638.3,2637.6,2.3221]
[1724329931343,0.55,2638.2,2637.6,2.3221]
[1724329933577,5.75747262,2638.4,2637.6,2.56697271]
[1724329933870,0.55,2638.3,2637.6,2.56697271]
[1724329934429,0.55,2638.3,2637.6,2.3221]
[1724329934652,3.79046,2638.2,2637.6,2.3221]
[1724329934838,3.79076,2638.0,2637.6,2.3221]
[1724329935036,3.0,2637.9,2637.6,2.3221]
[1724329935215,3.0,2637.9,2637.4,0.1266271]
[1724329935216,3.79146,2637.5,2637.4,0.1266271]
[1724329935432,1.5444929,2637.5,2637.4,0.1266271]
[1724329935972,0.9944929,2637.5,2637.4,0.1266271]
[1724329936179,5.36228902,2637.8,2637.4,0.1266271]
[1724329936325,2.36228902,2637.8,2637.4,0.1266271]
[1724329936530,7.04589955,2638.3,2637.5,2.2515]
[1724329936531,2.36228902,2638.0,2637.5,2.2515]
[1724329936741,2.36228902,2638.5,2637.6,2.2515]
[1724329937033,3.25552955,2639.0,2637.8,2.2515]
[1724329937034,2.36228902,2638.7,2637.8,2.2515]
[1724329937229,6.54541385,2639.0,2637.9,2.4912]
[1724329937230,2.36228902,2639.0,2637.9,2.4912]
[1724329938176,2.36228902,2639.1,2637.9,2.4912]
[1724329938398,2.36228902,2639.2,2638.1,2.4912]
[1724329938546,2.36228902,2639.3,2638.3,2.41]
[1724329938893,2.36228902,2639.4,2638.3,2.41]
[1724329939028,2.36228902,2639.3,2638.3,2.41]
[1724329939229,2.36228902,2639.2,2638.3,2.41]
[1724329939457,2.36228902,2639.2,2638.8,0.3]
[1724329939776,0.6151199,2639.2,2638.9,2.3442]
[1724329939982,6.15898973,2639.3,2638.9,2.3442]
[1724329940188,6.15926973,2639.1,2638.9,2.3442]
[1724329940333,3.55,2639.2,2638.9,2.3442]
[1724329940334,0.55,2639.0,2638.9,2.3442]
[1724329940830,0.55,2639.1,2638.9,2.3442]
[1724329941034,2.37007973,2639.1,2638.9,2.3442]
[1724329941231,5.37007973,2639.3,2638.9,2.3442]
[1724329941444,0.55,2639.2,2638.9,2.3442]
[1724329942438,4.33424236,2639.3,2638.9,2.3442]
[1724329942439,3.0,2639.3,2638.9,2.3442]
[1724329942662,2.76510364,2639.5,2638.9,2.3442]
[1724329942868,0.55,2639.4,2638.9,2.3442]
[1724329943546,0.94094165,2639.4,2638.9,2.3442]
[1724329944602,3.78911,2639.2,2638.9,2.3442]
[1724329944919,0.55,2639.1,2638.9,2.3442]
[1724329945413,4.33917,2639.1,2638.9,2.3442]
[1724329945698,0.55,2639.1,2638.9,2.3442]
[1724329945907,0.67086093,2639.0,2638.9,2.3442]
[1724329946061,5.01017093,2639.0,2638.9,2.3442]
[1724329946411,1.22086093,2639.0,2638.9,2.3442]
[1724329947806,3.78945,2638.9,2638.8,0.3]
[1724329948013,12.16688102,2638.9,2638.8,0.3]
[1724329948304,18.72074688,2638.9,2638.8,0.3]
[1724329948512,12.16688102,2638.9,2638.8,0.3]
[1724329949515,15.32674238,2638.9,2638.8,0.3]
[1724329949692,11.53729238,2638.9,2638.8,0.3]
[1724329949881,8.77251001,2638.9,2638.8,0.3]
[1724329950297,0.94507899,2638.9,2638.8,0.3]
[1724329950467,3.4356433,2639.0,2638.8,0.3]
[1724329950468,2.37043594,2639.0,2638.8,0.3]
[1724329951283,2.37043594,2639.1,2638.9,2.2573]
[1724329951522,2.76546142,2639.2,2638.9,2.2573]
[1724329951714,2.37043594,2639.2,2638.9,2.2573]
[1724329951868,6.15945594,2639.2,2638.9,2.2573]
[1724329952205,2.37043594,2639.0,2638.9,2.2573]
[1724329952609,2.37132078,2639.0,2638.8,0.3]
[1724329953111,6.71077078,2638.9,2638.8,0.3]
[1724329953275,8.1289,2638.9,2638.8,0.3]
[1724329953614,11.1289,2638.9,2638.8,0.3]
[1724329953763,8.72900932,2638.9,2638.8,0.3]
[1724329954365,11.10042122,2638.9,2638.8,0.3]
[1724329954619,5.9214119,2638.9,2638.8,0.3]
[1724329954838,3.55,2638.9,2638.8,0.3]
[1724329957247,9.7108619,2638.9,2638.8,0.3]
[1724329957425,11.1289,2638.9,2638.8,0.3]
[1724329957895,14.91835,2638.9,2638.8,0.3]
[1724329958232,20.0041138,2638.9,2638.8,0.3]
[1724329958436,12.94755063,2638.9,2638.8,0.3]
[1724329959541,16.2146638,2638.9,2638.8,0.3]
[1724329960191,12.94755063,2638.9,2638.8,0.3]
[1724329960388,16.2146638,2638.9,2638.8,0.3]
[1724329960588,20.0041138,2638.9,2638.8,0.3]
[1724329960791,16.2146638,2638.9,2638.8,0.3]
[1724329961039,12.94755063,2638.9,2638.8,0.3]
[1724329962365,13.34258293,2638.9,2638.8,0.3]
[1724329962564,8.52976052,2638.9,2638.8,0.3]
[1724329962715,7.7344823,2638.9,2638.8,0.3]
[1724329962920,2.76626262,2638.9,2638.8,0.3]
[1724329963360,0.3950323,2638.9,2638.8,2.7613]
[1724329964678,7.1844823,2638.9,2638.8,2.7613]
[1724329964819,9.55571262,2638.9,2638.8,2.7613]
[1724329965019,11.16685179,2638.9,2638.8,2.7613]
[1724329965252,11.71685179,2638.9,2638.8,2.7613]
[1724329966050,7.92740179,2638.9,2638.8,2.7613]
[1724329966264,3.9450323,2638.9,2638.8,2.7613]
[1724329968632,6.31649293,2638.9,2638.8,2.7613]
[1724329969741,3.9450323,2638.9,2638.8,2.7613]
[1724329969974,6.31649293,2638.9,2638.8,2.7613]
[1724329971069,5.76649293,2638.9,2638.8,2.7613]
[1724329971312,7.27208222,2638.9,2638.8,2.7613]
[1724329971967,7.27208222,2638.9,2638.8,0.3]
[1724329972170,12.47952159,2638.9,2638.8,0.3]
[1724329972580,15.24639745,2638.9,2638.8,0.3]
[1724329973657,12.47952159,2638.9,2638.8,0.3]
[1724329973901,15.2463718,2638.9,2638.8,0.3]
[1724329974061,15.24635266,2638.9,2638.8,0.3]
[1724329976409,12.47952159,2638.9,2638.8,0.3]
[1724329976961,19.53749815,2638.9,2638.8,0.3]
[1724329977443,16.26897159,2638.9,2638.8,0.3]
[1724329978062,16.26897159,2638.9,2638.2,2.09350312]
[1724329978270,16.26897159,2638.9,2637.4,0.7266271]
[1724329978271,36.44992665,2638.9,2637.4,0.7266271]
[1724329978451,36.44992665,2638.9,2634.8,0.31648554]
[1724329978452,3.79348,2636.1,2634.8,0.31648554]
[1724329978758,3.79307,2636.4,2634.8,3.2286271]
[1724329978759,2.70505049,2636.0,2634.8,3.2286271]
[1724329978966,2.32570249,2636.0,2634.8,3.2286271]
[1724329979145,3.0,2635.9,2634.8,3.2286271]
[1724329979526,0.92080488,2636.0,2635.1,3.102]
[1724329979931,0.92080488,2636.0,2635.1,3.052]
[1724329980149,0.56662348,2636.0,2635.1,3.052]
[1724329980312,0.56662348,2636.0,2634.8,0.1266271]
[1724329980313,0.56662348,2635.9,2635.4,3.102]
[1724329980513,0.56662348,2635.9,2635.3,4.143]
[1724329981367,3.79265,2636.7,2635.4,2.2958]
[1724329981527,3.90418813,2636.6,2635.4,2.2958]
[1724329981861,3.55,2636.6,2635.6,2.2958]
[1724329982959,3.79265,2636.7,2635.5,0.64388]
[1724329982960,3.79223,2637.0,2635.8,2.4937]
[1724329983163,4.69654266,2636.9,2635.8,2.4937]
[1724329983461,0.39536886,2636.9,2636.0,2.4937]
[1724329983608,3.79194,2637.2,2636.2,2.4657]
[1724329983809,3.79235,2636.9,2636.2,2.4657]
[1724329984362,0.39526609,2637.1,2636.2,2.4657]
[1724329984567,3.39526609,2637.1,2636.2,2.4657]
[1724329984709,0.55,2637.0,2636.3,0.271507]
[1724329984914,0.55,2637.0,2636.2,2.4657]
[1724329984915,3.79265,2636.7,2636.2,2.4657]
[1724329985359,3.0,2636.6,2636.2,2.4657]
[1724329985525,7.34227,2637.0,2636.2,2.4657]
[1724329985526,3.79233,2636.9,2636.2,2.4657]
[1724329985724,3.79276,2636.6,2636.2,2.4657]
[1724329985965,3.79233,2636.9,2636.2,2.71227]
[1724329986130,3.79265,2636.7,2636.2,2.71227]
[1724329986316,4.34283,2636.6,2636.2,2.71227]
[1724329986656,3.55,2637.0,2636.2,2.71227]
[1724329986657,6.79219,2637.0,2636.2,2.71227]
[1724329986958,3.79249,2636.8,2636.2,2.71227]
[1724329987172,4.143,2636.6,2635.4,2.3035]
[1724329987313,3.79394,2635.8,2635.4,2.3035]
[1724329987629,3.79365,2636.0,2635.4,2.3035]
[1724329987967,3.79354,2636.1,2635.4,2.3035]
[1724329988180,3.0,2636.2,2635.6,2.329]
[1724329988316,3.0,2636.4,2635.6,2.329]
[1724329988516,3.0,2636.7,2635.6,2.329]
[1724329988713,11.10256,2636.8,2635.6,2.329]
[1724329988947,11.1025,2636.8,2635.8,2.4653]
[1724329989350,3.79263,2636.7,2635.8,2.4653]
[1724329989552,7.31,2636.8,2635.8,2.4653]
[1724329989824,3.79333,2636.3,2635.8,2.4653]
[1724329990146,3.79377,2635.9,2635.8,2.4653]
[1724329990719,6.79341,2636.2,2635.8,2.4653]
[1724329991071,3.79377,2635.9,2635.8,2.4653]
[1724329991240,4.34377,2635.9,2635.8,2.4653]
[1724329991435,3.79404,2635.8,2634.9,2.4728]
[1724329991647,3.79404,2635.8,2634.8,0.1266271]
[1724329991648,3.79404,2635.8,2635.1,2.4664]
[1724329992020,3.79408,2635.7,2635.1,2.4664]
[1724329992272,4.34379,2635.9,2635.1,2.4664]
[1724329992468,0.55,2635.8,2635.1,2.4664]
[1724329992696,3.7935,2636.1,2635.1,2.4664]
[1724329992894,3.7935,2636.1,2635.3,2.337]
[1724329992895,3.0,2636.0,2635.3,2.337]
[1724329993412,0.55,2635.9,2635.3,2.337]
[1724329993548,7.34377,2635.9,2635.3,2.337]
[1724329993748,4.34377,2635.9,2635.3,2.337]
[1724329993982,3.7935,2636.1,2635.3,2.337]
[1724329994164,6.79363,2636.0,2635.4,0.30239343]
[1724329994346,0.55,2635.9,2635.4,0.30239343]
[1724329994544,3.79406,2635.7,2635.2,2.4481]
[1724329995203,6.79366,2636.0,2635.2,2.4481]
[1724329995351,3.0,2636.0,2635.2,2.4481]
[1724329995557,3.79377,2635.9,2635.2,2.4481]
[1724329995869,3.79377,2635.9,2635.2,2.71890427]
[1724329996085,3.79393,2635.8,2635.2,2.71890427]
[1724329996294,3.79377,2635.9,2635.2,2.71890427]
[1724329996500,3.39499757,2636.1,2635.2,2.4481]
[1724329996501,3.7942,2635.6,2635.2,2.4481]
[1724329997069,3.79394,2635.8,2635.2,2.4481]
[1724329997070,3.0,2635.8,2635.2,2.4481]
[1724329997328,3.79422,2635.6,2635.2,2.4481]
[1724329997627,6.79436,2635.5,2635.2,2.4481]
[1724329997804,3.0,2635.5,2635.2,2.4481]
[1724329998485,6.79434,2635.5,2635.2,2.4481]
[1724329998873,3.0,2635.5,2635.2,2.4481]
[1724329999072,3.79447,2635.5,2635.2,2.4481]
[1724329999282,4.503877,2635.5,2635.2,2.4481]
[1724330000169,3.79463,2635.3,2634.8,2.5431271]
[1724330000919,4.503777,2635.5,2634.8,2.5431271]
[1724330001125,6.79449,2635.4,2634.8,2.5431271]
[1724330001272,6.79449,2635.4,2634.8,0.1266271]
[1724330001273,3.79521,2634.9,2634.8,0.1266271]
[1724330001470,3.79706,2633.7,2633.2,2.4713]
[1724330001724,3.79724,2633.5,2633.2,2.4713]
[1724330002028,3.79725,2633.5,2633.2,2.4713]
[1724330002319,3.797,2633.7,2633.2,2.4713]
[1724330002523,3.0,2633.9,2633.2,2.4713]
[1724330002724,3.0,2634.2,2633.3,0.24713]
[1724330002928,3.0,2634.2,2633.4,2.3243]
[1724330003217,6.79637,2634.1,2633.4,2.3243]
[1724330003527,3.79676,2633.9,2633.4,2.3243]
[1724330003673,3.7967,2633.9,2633.4,2.3243]
[1724330003873,0.55,2634.0,2633.4,2.55673]
[1724330004067,3.55,2634.0,2633.4,2.55673]
[1724330004274,3.79559,2634.7,2633.4,2.55673]
[1724330004533,3.79605,2634.4,2633.4,2.55673]
[1724330004825,3.79568,2634.6,2633.6,2.4091]
[1724330005028,3.0,2634.5,2633.6,2.4091]
[1724330005340,3.79631,2634.2,2633.6,2.4091]
[1724330005474,3.79631,2634.2,2633.6,2.6755773]
[1724330005685,0.39417787,2634.3,2633.6,2.6755773]
[1724330005878,3.39417787,2634.3,2633.6,2.6755773]
[1724330006212,3.79668,2633.9,2633.6,2.4091]
[1724330006405,3.79668,2633.9,2633.0,2.0]
[1724330006406,0.55,2633.8,2633.0,2.0]
[1724330006613,3.79773,2633.2,2633.0,2.0]
[1724330006924,3.79773,2633.2,2632.5,2.3844]
[1724330006925,4.693,2633.1,2632.3,50.0]
[1724330007133,7.59762,2632.4,2632.3,50.0]
[1724330007425,4.34881,2632.4,2632.3,50.0]
[1724330007668,7.34881,2632.4,2632.3,50.0]
[1724330007842,11.14762,2632.4,2632.3,50.0]
[1724330008133,12.676682,2632.4,2632.3,50.0]
[1724330008334,8.877872,2632.4,2632.3,50.0]
[1724330008480,3.55,2632.4,2632.3,50.0]
[1724330008683,1.5506,2633.9,2632.4,2.2781]
[1724330008981,3.79696,2633.7,2632.4,2.2781]
[1724330009192,3.79724,2633.5,2632.4,2.2781]
[1724330009392,3.79718,2633.6,2632.4,2.2781]
[1724330009629,0.379718,2633.5,2632.5,3.93244067]
[1724330009833,8.7349,2633.9,2632.5,3.93244067]
[1724330009834,16.32842,2633.9,2632.5,3.93244067]
[1724330009976,8.7349,2633.9,2632.6,2.3427]
[1724330010192,3.79714,2633.6,2632.6,2.3427]
[1724330010389,12.53162,2633.9,2632.6,2.3427]
[1724330010688,13.784775,2633.9,2632.8,2.3427]
[1724330011543,9.988055,2633.9,2632.8,2.3427]
[1724330011897,12.53168,2633.9,2632.8,2.3427]
[1724330012343,8.7349,2633.9,2632.8,2.3427]
[1724330012543,3.79654,2634.0,2632.8,2.3427]
[1724330012544,3.0,2633.8,2632.8,2.3427]
[1724330012748,3.0,2633.9,2632.8,2.3427]
[1724330012913,3.79665,2633.9,2632.8,2.3427]
[1724330013128,3.0,2633.8,2632.9,0.23427]
[1724330013859,3.0,2633.9,2633.0,2.4742]